[Event "Early-Titled-Tuesday-Blitz-February-20-2024"]
[Site "Chess.com"]
[Date "2024.02.20"]
[Round "11"]
[White "kleopl"]
[Black "Rud_2008"]
[Result "0-1"]
[WhiteElo "2516"]
[BlackElo "2711"]
[TimeControl "180+1"]
[EndTime "10:08:59 PST"]
[Termination "Rud_2008 won by resignation"]

1. e4 {[%clk 0:03:00.3]} 1... e5 {[%clk 0:02:56.2]} 2. Nf3 {[%clk 0:02:59.9]}
2... Nc6 {[%clk 0:02:56.8]} 3. c3 {[%clk 0:03:00]} 3... d5 {[%clk 0:02:56.6]} 4.
Qa4 {[%clk 0:02:59.1]} 4... Nf6 {[%clk 0:02:56.6]} 5. Nxe5 {[%clk 0:02:54.7]}
5... dxe4 {[%clk 0:02:50.2]} 6. Nxc6 {[%clk 0:02:51.1]} 6... bxc6 {[%clk
0:02:49.8]} 7. Qxc6+ {[%clk 0:02:46.5]} 7... Bd7 {[%clk 0:02:48.9]} 8. Qa6
{[%clk 0:02:45.4]} 8... Bd6 {[%clk 0:02:48]} 9. Bb5 {[%clk 0:02:45]} 9... O-O
{[%clk 0:02:47.6]} 10. Bxd7 {[%clk 0:02:29.9]} 10... Qxd7 {[%clk 0:02:48.5]} 11.
O-O {[%clk 0:02:29.9]} 11... Qf5 {[%clk 0:02:45.9]} 12. d4 {[%clk 0:02:22.4]}
12... exd3 {[%clk 0:02:43.8]} 13. Be3 {[%clk 0:02:20.4]} 13... Ng4 {[%clk
0:02:39.1]} 14. g3 {[%clk 0:02:12.2]} 14... Ne5 {[%clk 0:02:30.4]} 15. Nd2
{[%clk 0:02:09.6]} 15... Qh3 {[%clk 0:02:25.2]} 16. f3 {[%clk 0:02:03.9]} 16...
Rfe8 {[%clk 0:02:22.2]} 17. Bd4 {[%clk 0:02:01.1]} 17... Rad8 {[%clk 0:02:09.1]}
18. Rae1 {[%clk 0:01:58]} 18... c5 {[%clk 0:01:51.2]} 19. Bxe5 {[%clk
0:01:42.2]} 19... Bxe5 {[%clk 0:01:52.1]} 20. f4 {[%clk 0:01:37.6]} 20... Re6
{[%clk 0:01:35.8]} 21. Qa5 {[%clk 0:01:30]} 21... Bf6 {[%clk 0:01:22.8]} 22.
Rxe6 {[%clk 0:01:13.4]} 22... Qxe6 {[%clk 0:01:21.8]} 23. Qxc5 {[%clk
0:01:12.4]} 23... h6 {[%clk 0:01:15.4]} 24. Qxa7 {[%clk 0:01:08.2]} 24... Rd5
{[%clk 0:01:04.3]} 25. Qf2 {[%clk 0:01:05.6]} 25... Be7 {[%clk 0:01:03.1]} 26.
Re1 {[%clk 0:00:56.4]} 26... Qd7 {[%clk 0:00:58.3]} 27. Kg2 {[%clk 0:00:49.4]}
27... Bf6 {[%clk 0:00:46.7]} 28. Qf3 {[%clk 0:00:47.1]} 28... g6 {[%clk
0:00:44.5]} 29. Re3 {[%clk 0:00:34.9]} 29... Kg7 {[%clk 0:00:42.7]} 30. a4
{[%clk 0:00:28.8]} 30... Rd6 {[%clk 0:00:38.7]} 31. a5 {[%clk 0:00:23.9]} 31...
Qb5 {[%clk 0:00:37.8]} 32. Ne4 {[%clk 0:00:19.9]} 32... Rd7 {[%clk 0:00:22.5]}
33. Nxf6 {[%clk 0:00:14]} 33... Kxf6 {[%clk 0:00:23.4]} 34. b4 {[%clk
0:00:11.7]} 34... d2 {[%clk 0:00:20.5]} 35. Qd1 {[%clk 0:00:11.9]} 35... Qc6+
{[%clk 0:00:18.4]} 36. Kf2 {[%clk 0:00:11.8]} 36... Qc4 {[%clk 0:00:17]} 37. Re2
{[%clk 0:00:10.6]} 37... Qxc3 {[%clk 0:00:17.2]} 38. a6 {[%clk 0:00:06.4]} 38...
Qc1 {[%clk 0:00:16.9]} 39. Rxd2 {[%clk 0:00:03.6]} 39... Rxd2+ {[%clk
0:00:16.2]} 0-1

[Event "Early-Titled-Tuesday-Blitz-February-20-2024"]
[Site "Chess.com"]
[Date "2024.02.20"]
[Round "11"]
[White "Mikasinski"]
[Black "NewBornNow"]
[Result "0-1"]
[WhiteElo "2656"]
[BlackElo "2806"]
[TimeControl "180+1"]
[EndTime "10:09:01 PST"]
[Termination "NewBornNow won by resignation"]

1. e4 {[%clk 0:03:00.1]} 1... c5 {[%clk 0:02:57.2]} 2. Nf3 {[%clk 0:03:00.1]}
2... d6 {[%clk 0:02:57.3]} 3. d4 {[%clk 0:03:00.8]} 3... cxd4 {[%clk 0:02:57.6]}
4. Nxd4 {[%clk 0:03:01.7]} 4... Nf6 {[%clk 0:02:57.8]} 5. Nc3 {[%clk 0:03:02.4]}
5... a6 {[%clk 0:02:58]} 6. Rg1 {[%clk 0:03:03.1]} 6... e5 {[%clk 0:02:56.2]} 7.
Nb3 {[%clk 0:03:03.1]} 7... h5 {[%clk 0:02:54.4]} 8. h3 {[%clk 0:03:03.3]} 8...
h4 {[%clk 0:02:53.2]} 9. Be3 {[%clk 0:03:03.4]} 9... Be6 {[%clk 0:02:52.1]} 10.
Qd2 {[%clk 0:03:03.7]} 10... Nbd7 {[%clk 0:02:51.9]} 11. O-O-O {[%clk
0:03:04.2]} 11... Qc7 {[%clk 0:02:48.9]} 12. f4 {[%clk 0:03:04]} 12... Rc8
{[%clk 0:02:47.3]} 13. Kb1 {[%clk 0:03:01]} 13... b5 {[%clk 0:02:46.7]} 14. f5
{[%clk 0:03:00.1]} 14... Bc4 {[%clk 0:02:45.9]} 15. Bd3 {[%clk 0:02:51.2]} 15...
b4 {[%clk 0:02:45.2]} 16. Ne2 {[%clk 0:02:38.3]} 16... a5 {[%clk 0:02:40.1]} 17.
Bxc4 {[%clk 0:02:18.8]} 17... Qxc4 {[%clk 0:02:37]} 18. Nxa5 {[%clk 0:02:18.4]}
18... Qxe4 {[%clk 0:02:35.9]} 19. Qd3 {[%clk 0:02:16.1]} 19... Qxd3 {[%clk
0:02:15.4]} 20. cxd3 {[%clk 0:02:15.9]} 20... Rh5 {[%clk 0:02:09.6]} 21. Rgf1
{[%clk 0:02:14.5]} 21... d5 {[%clk 0:02:07.8]} 22. d4 {[%clk 0:02:12.2]} 22...
e4 {[%clk 0:02:05.8]} 23. Rc1 {[%clk 0:02:06]} 23... Ra8 {[%clk 0:02:02.7]} 24.
Nb3 {[%clk 0:02:04]} 24... Nb6 {[%clk 0:01:59.5]} 25. Rc6 {[%clk 0:01:48.3]}
25... Nc4 {[%clk 0:01:57.3]} 26. Bc1 {[%clk 0:01:48.2]} 26... Nd6 {[%clk
0:01:52.5]} 27. Bf4 {[%clk 0:01:37]} 27... Nxf5 {[%clk 0:01:20.4]} 28. Be5
{[%clk 0:01:33.4]} 28... Ne3 {[%clk 0:01:11.6]} 29. Rfc1 {[%clk 0:01:30.7]}
29... Nc4 {[%clk 0:01:11.4]} 30. Bxf6 {[%clk 0:01:22.7]} 30... gxf6 {[%clk
0:01:10.8]} 31. Rxf6 {[%clk 0:01:19]} 31... Be7 {[%clk 0:01:03.2]} 32. Rff1
{[%clk 0:01:06.3]} 32... Rg5 {[%clk 0:00:55.9]} 33. Nf4 {[%clk 0:01:03]} 33...
Ne3 {[%clk 0:00:53.8]} 34. Rfe1 {[%clk 0:01:00.7]} 34... Nxg2 {[%clk 0:00:49.6]}
35. Rf1 {[%clk 0:00:47]} 35... Ne3 {[%clk 0:00:37.4]} 36. Rf2 {[%clk 0:00:46.8]}
36... Bd6 {[%clk 0:00:31]} 37. Ne2 {[%clk 0:00:38.8]} 37... f5 {[%clk
0:00:29.9]} 38. Nc5 {[%clk 0:00:34.9]} 38... Ke7 {[%clk 0:00:28.5]} 39. Nb7
{[%clk 0:00:26.7]} 39... Bg3 {[%clk 0:00:26]} 40. Rff1 {[%clk 0:00:13.4]} 40...
Nxf1 {[%clk 0:00:25]} 41. Rxf1 {[%clk 0:00:13.8]} 41... Rf8 {[%clk 0:00:24.3]}
42. Na5 {[%clk 0:00:13.3]} 42... f4 {[%clk 0:00:23.4]} 43. Nc6+ {[%clk
0:00:13.9]} 43... Kd6 {[%clk 0:00:23.1]} 44. Ne5 {[%clk 0:00:13.9]} 44... Rxe5
{[%clk 0:00:22.6]} 45. dxe5+ {[%clk 0:00:14.2]} 45... Kxe5 {[%clk 0:00:22.9]}
0-1

[Event "Early-Titled-Tuesday-Blitz-February-20-2024"]
[Site "Chess.com"]
[Date "2024.02.20"]
[Round "11"]
[White "Genghis_K"]
[Black "Rakhmanov_Aleksandr"]
[Result "1-0"]
[WhiteElo "2945"]
[BlackElo "2874"]
[TimeControl "180+1"]
[EndTime "10:09:03 PST"]
[Termination "Genghis_K won on time"]

1. e4 {[%clk 0:03:00.9]} 1... c5 {[%clk 0:02:57.4]} 2. Nf3 {[%clk 0:03:01.2]}
2... Nf6 {[%clk 0:02:55]} 3. e5 {[%clk 0:02:55.1]} 3... Nd5 {[%clk 0:02:54]} 4.
Nc3 {[%clk 0:02:55.9]} 4... Nxc3 {[%clk 0:02:54.1]} 5. dxc3 {[%clk 0:02:55.4]}
5... Nc6 {[%clk 0:02:55]} 6. Bf4 {[%clk 0:02:50]} 6... Qb6 {[%clk 0:02:55.1]} 7.
Rb1 {[%clk 0:02:49.8]} 7... Qc7 {[%clk 0:02:55.5]} 8. Bc4 {[%clk 0:02:43.8]}
8... e6 {[%clk 0:02:55.8]} 9. O-O {[%clk 0:02:33.6]} 9... h6 {[%clk 0:02:55.8]}
10. Qe2 {[%clk 0:02:32.1]} 10... b6 {[%clk 0:02:56.2]} 11. Nd2 {[%clk
0:02:30.7]} 11... Bb7 {[%clk 0:02:56]} 12. Rfe1 {[%clk 0:02:23.4]} 12... O-O-O
{[%clk 0:02:54.9]} 13. Bd3 {[%clk 0:02:20]} 13... g5 {[%clk 0:02:52.6]} 14. Bg3
{[%clk 0:02:20.2]} 14... h5 {[%clk 0:02:53.2]} 15. h3 {[%clk 0:02:20.5]} 15...
Be7 {[%clk 0:02:38.3]} 16. Nc4 {[%clk 0:02:14.6]} 16... Rdg8 {[%clk 0:02:36.3]}
17. Rbd1 {[%clk 0:02:09.3]} 17... Rg7 {[%clk 0:02:08.9]} 18. Be4 {[%clk
0:02:06.3]} 18... Kb8 {[%clk 0:01:48.7]} 19. Nd6 {[%clk 0:02:00.6]} 19... Bxd6
{[%clk 0:01:46.5]} 20. Rxd6 {[%clk 0:02:00.9]} 20... Na5 {[%clk 0:01:18.9]} 21.
Red1 {[%clk 0:01:59.2]} 21... Rd8 {[%clk 0:01:13.7]} 22. b3 {[%clk 0:01:38.8]}
22... Bxe4 {[%clk 0:01:09.3]} 23. Qxe4 {[%clk 0:01:39.7]} 23... Nb7 {[%clk
0:00:51.7]} 24. R6d2 {[%clk 0:01:38.9]} 24... Kc8 {[%clk 0:00:45.1]} 25. h4
{[%clk 0:01:33.3]} 25... Qc6 {[%clk 0:00:19]} 26. Qxc6+ {[%clk 0:01:24.5]} 26...
dxc6 {[%clk 0:00:19.3]} 27. Rxd8+ {[%clk 0:01:25.3]} 27... Nxd8 {[%clk 0:00:20]}
28. hxg5 {[%clk 0:01:26.2]} 28... Rxg5 {[%clk 0:00:12.8]} 29. Bh4 {[%clk
0:00:48.7]} 29... Rg8 {[%clk 0:00:12.5]} 30. Bxd8 {[%clk 0:00:47.7]} 30... Rxd8
{[%clk 0:00:12]} 31. Rxd8+ {[%clk 0:00:48.6]} 31... Kxd8 {[%clk 0:00:12.9]} 32.
Kh2 {[%clk 0:00:49.4]} 32... Ke7 {[%clk 0:00:09.8]} 33. Kg3 {[%clk 0:00:49.6]}
33... f6 {[%clk 0:00:08.7]} 34. Kh4 {[%clk 0:00:48.5]} 34... fxe5 {[%clk
0:00:08.8]} 35. Kxh5 {[%clk 0:00:48.9]} 35... Kf6 {[%clk 0:00:07.1]} 36. g4
{[%clk 0:00:39.1]} 36... e4 {[%clk 0:00:04]} 37. Kh6 {[%clk 0:00:38.2]} 37...
Ke5 {[%clk 0:00:02.9]} 38. g5 {[%clk 0:00:32.8]} 38... Kf4 {[%clk 0:00:03.5]}
39. g6 {[%clk 0:00:33.5]} 39... Kf3 {[%clk 0:00:03.8]} 40. g7 {[%clk 0:00:34.2]}
40... Kxf2 {[%clk 0:00:04.7]} 41. g8=Q {[%clk 0:00:34.8]} 41... e3 {[%clk
0:00:05.5]} 42. Qf7+ {[%clk 0:00:34.9]} 42... Ke2 {[%clk 0:00:04.4]} 43. Qxe6
{[%clk 0:00:28.7]} 43... Kd2 {[%clk 0:00:04.7]} 44. Qf5 {[%clk 0:00:25.9]} 1-0

[Event "Early-Titled-Tuesday-Blitz-February-20-2024"]
[Site "Chess.com"]
[Date "2024.02.20"]
[Round "11"]
[White "chess94cu"]
[Black "Byniolus"]
[Result "1-0"]
[WhiteElo "2689"]
[BlackElo "2816"]
[TimeControl "180+1"]
[EndTime "10:09:03 PST"]
[Termination "chess94cu won on time"]

1. e4 {[%clk 0:03:00.9]} 1... d6 {[%clk 0:02:57.5]} 2. d4 {[%clk 0:03:00.2]}
2... Nf6 {[%clk 0:02:58.4]} 3. Nc3 {[%clk 0:03:00.3]} 3... c6 {[%clk 0:02:59.1]}
4. a4 {[%clk 0:02:54.5]} 4... a5 {[%clk 0:02:58.2]} 5. f4 {[%clk 0:02:48.3]}
5... Qb6 {[%clk 0:02:55.9]} 6. Nf3 {[%clk 0:02:47.8]} 6... Bg4 {[%clk
0:02:55.7]} 7. Be2 {[%clk 0:02:40.3]} 7... Bxf3 {[%clk 0:02:55.9]} 8. Bxf3
{[%clk 0:02:40.2]} 8... e5 {[%clk 0:02:56.8]} 9. Ne2 {[%clk 0:02:32.4]} 9...
Nbd7 {[%clk 0:02:55.1]} 10. c3 {[%clk 0:02:31]} 10... Be7 {[%clk 0:02:55.2]} 11.
O-O {[%clk 0:02:30.4]} 11... O-O {[%clk 0:02:55.5]} 12. Kh1 {[%clk 0:02:30.5]}
12... Rfe8 {[%clk 0:02:55.6]} 13. Qc2 {[%clk 0:02:21.7]} 13... Bf8 {[%clk
0:02:55.8]} 14. Ng3 {[%clk 0:02:21.1]} 14... exd4 {[%clk 0:02:53]} 15. Rd1
{[%clk 0:02:04.2]} 15... dxc3 {[%clk 0:02:49]} 16. bxc3 {[%clk 0:02:05.1]} 16...
Nc5 {[%clk 0:02:44.8]} 17. Be3 {[%clk 0:02:01.1]} 17... Qc7 {[%clk 0:02:21.4]}
18. Rab1 {[%clk 0:01:55.7]} 18... g6 {[%clk 0:02:11.4]} 19. Bxc5 {[%clk
0:01:45.7]} 19... dxc5 {[%clk 0:02:11]} 20. e5 {[%clk 0:01:46.5]} 20... Nd7
{[%clk 0:01:44]} 21. Ne4 {[%clk 0:01:45.2]} 21... Be7 {[%clk 0:01:44.4]} 22. Qb3
{[%clk 0:01:33]} 22... Reb8 {[%clk 0:01:26.5]} 23. e6 {[%clk 0:01:19.2]} 23...
Nf8 {[%clk 0:01:25.4]} 24. exf7+ {[%clk 0:01:19.2]} 24... Kg7 {[%clk 0:01:25.1]}
25. g3 {[%clk 0:01:06.4]} 25... b5 {[%clk 0:01:17.4]} 26. c4 {[%clk 0:01:04.2]}
26... bxa4 {[%clk 0:01:06.8]} 27. Qc3+ {[%clk 0:01:03.5]} 27... Kxf7 {[%clk
0:01:06.2]} 28. Qh8 {[%clk 0:00:55.5]} 28... Rxb1 {[%clk 0:01:00]} 29. Rxb1
{[%clk 0:00:54.2]} 29... a3 {[%clk 0:00:44.3]} 30. Rf1 {[%clk 0:00:47.4]} 30...
a2 {[%clk 0:00:40.6]} 31. Ng5+ {[%clk 0:00:33.7]} 31... Ke8 {[%clk 0:00:39.5]}
32. Ne6 {[%clk 0:00:19.4]} 32... Qd7 {[%clk 0:00:30.1]} 33. Nxf8 {[%clk
0:00:19.1]} 33... Bxf8 {[%clk 0:00:31]} 34. Re1+ {[%clk 0:00:18.8]} 34... Kf7
{[%clk 0:00:23.1]} 35. Qxh7+ {[%clk 0:00:18.4]} 35... Bg7 {[%clk 0:00:23.8]} 36.
Be4 {[%clk 0:00:18.2]} 36... Qd6 {[%clk 0:00:19.6]} 37. f5 {[%clk 0:00:17.7]}
37... Rh8 {[%clk 0:00:07.8]} 38. fxg6+ {[%clk 0:00:14.9]} 1-0

[Event "Early-Titled-Tuesday-Blitz-February-20-2024"]
[Site "Chess.com"]
[Date "2024.02.20"]
[Round "11"]
[White "tetrix83"]
[Black "ansko1999"]
[Result "1-0"]
[WhiteElo "2543"]
[BlackElo "2686"]
[TimeControl "180+1"]
[EndTime "10:09:04 PST"]
[Termination "tetrix83 won by checkmate"]

1. e4 {[%clk 0:03:00.9]} 1... d6 {[%clk 0:02:56]} 2. d4 {[%clk 0:03:00.6]} 2...
g6 {[%clk 0:02:55]} 3. Nf3 {[%clk 0:03:00.3]} 3... Bg7 {[%clk 0:02:54.7]} 4. c3
{[%clk 0:02:59.5]} 4... c5 {[%clk 0:02:48.6]} 5. Bd3 {[%clk 0:02:58.8]} 5...
cxd4 {[%clk 0:02:19.4]} 6. cxd4 {[%clk 0:02:58.8]} 6... Nc6 {[%clk 0:02:19.1]}
7. d5 {[%clk 0:02:56.2]} 7... Nb8 {[%clk 0:02:12.9]} 8. O-O {[%clk 0:02:54.9]}
8... Nf6 {[%clk 0:02:11.6]} 9. h3 {[%clk 0:02:51.5]} 9... O-O {[%clk 0:02:11.2]}
10. Nc3 {[%clk 0:02:51.6]} 10... a6 {[%clk 0:02:02]} 11. a4 {[%clk 0:02:51]}
11... Nbd7 {[%clk 0:02:01.2]} 12. a5 {[%clk 0:02:47.3]} 12... b6 {[%clk
0:01:56.3]} 13. axb6 {[%clk 0:02:46.9]} 13... Nxb6 {[%clk 0:01:51.2]} 14. Be3
{[%clk 0:02:45.6]} 14... Nfd7 {[%clk 0:01:50.6]} 15. Bd4 {[%clk 0:02:42]} 15...
Nc5 {[%clk 0:01:40.4]} 16. Bxg7 {[%clk 0:02:40.5]} 16... Kxg7 {[%clk 0:01:39.8]}
17. Be2 {[%clk 0:02:34.6]} 17... a5 {[%clk 0:01:38.6]} 18. Nd4 {[%clk
0:02:30.6]} 18... Bd7 {[%clk 0:01:37.5]} 19. Bb5 {[%clk 0:02:27.3]} 19... Bxb5
{[%clk 0:01:31.3]} 20. Ncxb5 {[%clk 0:02:21.4]} 20... a4 {[%clk 0:01:25.3]} 21.
Nc6 {[%clk 0:02:19.2]} 21... Qd7 {[%clk 0:01:23.3]} 22. Qd4+ {[%clk 0:02:17]}
22... f6 {[%clk 0:01:18.1]} 23. Ra3 {[%clk 0:02:09.4]} 23... Rfc8 {[%clk
0:00:56.9]} 24. f4 {[%clk 0:01:48.5]} 24... Rxc6 {[%clk 0:00:45.5]} 25. dxc6
{[%clk 0:01:49.4]} 25... Qxc6 {[%clk 0:00:46.2]} 26. Nc3 {[%clk 0:01:47.6]}
26... Nb3 {[%clk 0:00:40.7]} 27. Qb4 {[%clk 0:01:33.6]} 27... Nc5 {[%clk
0:00:21.9]} 28. e5 {[%clk 0:01:27.8]} 28... dxe5 {[%clk 0:00:18.5]} 29. fxe5
{[%clk 0:01:28]} 29... fxe5 {[%clk 0:00:15.9]} 30. Qh4 {[%clk 0:01:09.3]} 30...
Qe6 {[%clk 0:00:12.4]} 31. Ne4 {[%clk 0:01:02.4]} 31... Nxe4 {[%clk 0:00:09.6]}
32. Qxe4 {[%clk 0:01:01.7]} 32... Rc8 {[%clk 0:00:08.9]} 33. Raf3 {[%clk
0:00:52.3]} 33... Nd5 {[%clk 0:00:06.4]} 34. Rf7+ {[%clk 0:00:48.2]} 34... Kg8
{[%clk 0:00:06.5]} 35. Qh4 {[%clk 0:00:40.3]} 35... h5 {[%clk 0:00:04.7]} 36.
Qg5 {[%clk 0:00:36.5]} 36... Nf4 {[%clk 0:00:03.8]} 37. Rxe7 {[%clk 0:00:31.2]}
37... Qc6 {[%clk 0:00:02.5]} 38. Rxe5 {[%clk 0:00:21.9]} 38... Nd3 {[%clk
0:00:02.1]} 39. Rd5 {[%clk 0:00:15.5]} 39... Nb4 {[%clk 0:00:01.9]} 40. Rd8+
{[%clk 0:00:15.2]} 40... Rxd8 {[%clk 0:00:02.1]} 41. Qxd8+ {[%clk 0:00:15.8]}
41... Kg7 {[%clk 0:00:02.6]} 42. Qf8+ {[%clk 0:00:15.8]} 42... Kh7 {[%clk
0:00:02.7]} 43. Rf7# {[%clk 0:00:16.4]} 1-0

[Event "Early-Titled-Tuesday-Blitz-February-20-2024"]
[Site "Chess.com"]
[Date "2024.02.20"]
[Round "11"]
[White "picturesquecheck"]
[Black "deribas12345"]
[Result "1-0"]
[WhiteElo "2454"]
[BlackElo "2586"]
[TimeControl "180+1"]
[EndTime "10:09:05 PST"]
[Termination "picturesquecheck won by resignation"]

1. e4 {[%clk 0:03:00.9]} 1... c5 {[%clk 0:02:59.7]} 2. Nf3 {[%clk 0:03:01.1]}
2... e6 {[%clk 0:03:00.1]} 3. g3 {[%clk 0:02:58.1]} 3... d5 {[%clk 0:03:01]} 4.
e5 {[%clk 0:02:58.4]} 4... Nc6 {[%clk 0:03:00.7]} 5. c3 {[%clk 0:02:57.3]} 5...
f6 {[%clk 0:02:58.7]} 6. exf6 {[%clk 0:02:56.9]} 6... Nxf6 {[%clk 0:02:59.2]} 7.
d4 {[%clk 0:02:53.7]} 7... cxd4 {[%clk 0:02:57.3]} 8. cxd4 {[%clk 0:02:54.6]}
8... Bb4+ {[%clk 0:02:57.3]} 9. Bd2 {[%clk 0:02:50.2]} 9... Bxd2+ {[%clk
0:02:56.1]} 10. Nbxd2 {[%clk 0:02:50.7]} 10... O-O {[%clk 0:02:56.8]} 11. Bg2
{[%clk 0:02:48.6]} 11... Qb6 {[%clk 0:02:55.1]} 12. Nb3 {[%clk 0:02:47.5]} 12...
Ne4 {[%clk 0:02:54.7]} 13. O-O {[%clk 0:02:46]} 13... Bd7 {[%clk 0:02:49.4]} 14.
Rc1 {[%clk 0:02:44.5]} 14... Rf6 {[%clk 0:02:35.9]} 15. Nfd2 {[%clk 0:02:10.1]}
15... Raf8 {[%clk 0:02:00.9]} 16. Bxe4 {[%clk 0:02:00.4]} 16... dxe4 {[%clk
0:02:00.5]} 17. Nxe4 {[%clk 0:02:01]} 17... Rh6 {[%clk 0:01:54.2]} 18. Nec5
{[%clk 0:01:52.3]} 18... Bc8 {[%clk 0:01:51.8]} 19. Qe2 {[%clk 0:01:47]} 19...
Kh8 {[%clk 0:01:40.2]} 20. Rc3 {[%clk 0:01:36.6]} 20... a5 {[%clk 0:01:31.4]}
21. Re3 {[%clk 0:01:27.4]} 21... Nb4 {[%clk 0:01:11.8]} 22. Re1 {[%clk
0:01:11.4]} 22... Rhf6 {[%clk 0:00:33.4]} 23. Ne4 {[%clk 0:00:46.8]} 23... Rg6
{[%clk 0:00:31.2]} 24. Nec5 {[%clk 0:00:29]} 24... Nd5 {[%clk 0:00:19.2]} 25.
Nxe6 {[%clk 0:00:18.4]} 25... Nxe3 {[%clk 0:00:16.4]} 26. Nxf8 {[%clk 0:00:18]}
26... Rf6 {[%clk 0:00:10.4]} 27. Qxe3 {[%clk 0:00:17.8]} 27... Rxf8 {[%clk
0:00:10.6]} 28. d5 {[%clk 0:00:18.4]} 28... Qb4 {[%clk 0:00:09.9]} 29. Qe7
{[%clk 0:00:17.7]} 29... Bh3 {[%clk 0:00:06]} 30. Qxb4 {[%clk 0:00:17.4]} 30...
axb4 {[%clk 0:00:06.9]} 31. Rd1 {[%clk 0:00:15.7]} 31... Rd8 {[%clk 0:00:04.3]}
32. d6 {[%clk 0:00:16.2]} 32... Kg8 {[%clk 0:00:04.5]} 33. Nc5 {[%clk
0:00:16.4]} 33... Kf7 {[%clk 0:00:01.7]} 34. Nxb7 {[%clk 0:00:15.6]} 34... Rb8
{[%clk 0:00:02.1]} 35. d7 {[%clk 0:00:14.7]} 35... Bxd7 {[%clk 0:00:02.3]} 36.
Rxd7+ {[%clk 0:00:14.5]} 36... Ke6 {[%clk 0:00:03.2]} 37. Rxg7 {[%clk
0:00:14.5]} 37... Rc8 {[%clk 0:00:02.9]} 38. Rxh7 {[%clk 0:00:14.5]} 1-0

[Event "Early-Titled-Tuesday-Blitz-February-20-2024"]
[Site "Chess.com"]
[Date "2024.02.20"]
[Round "11"]
[White "DmitriiZakurdaev"]
[Black "ChainedDowntohell"]
[Result "1-0"]
[WhiteElo "2453"]
[BlackElo "2535"]
[TimeControl "180+1"]
[EndTime "10:09:05 PST"]
[Termination "DmitriiZakurdaev won by checkmate"]

1. d4 {[%clk 0:03:00.9]} 1... Nf6 {[%clk 0:02:25.1]} 2. c4 {[%clk 0:02:57]} 2...
b6 {[%clk 0:02:25]} 3. Nc3 {[%clk 0:02:56.3]} 3... Bb7 {[%clk 0:02:25.1]} 4. Qc2
{[%clk 0:02:50.2]} 4... d5 {[%clk 0:02:24.7]} 5. cxd5 {[%clk 0:02:46.3]} 5...
Nxd5 {[%clk 0:02:25.6]} 6. e4 {[%clk 0:02:38.9]} 6... Nxc3 {[%clk 0:02:24]} 7.
bxc3 {[%clk 0:02:39.3]} 7... e5 {[%clk 0:02:24]} 8. d5 {[%clk 0:02:37.7]} 8...
Bc5 {[%clk 0:02:22.3]} 9. Nf3 {[%clk 0:02:34.4]} 9... O-O {[%clk 0:02:22.3]} 10.
Bd3 {[%clk 0:02:30.4]} 10... c6 {[%clk 0:02:21.1]} 11. c4 {[%clk 0:02:29]} 11...
Nd7 {[%clk 0:02:13.2]} 12. O-O {[%clk 0:02:24.2]} 12... Bd6 {[%clk 0:02:12.9]}
13. Bb2 {[%clk 0:02:13.6]} 13... Rc8 {[%clk 0:02:12]} 14. Qe2 {[%clk 0:02:08]}
14... Qe7 {[%clk 0:02:04.6]} 15. a4 {[%clk 0:02:06.5]} 15... a5 {[%clk
0:02:02.1]} 16. Rfb1 {[%clk 0:01:55.6]} 16... Rb8 {[%clk 0:01:42.4]} 17. Bc1
{[%clk 0:01:52]} 17... Rfc8 {[%clk 0:01:40.4]} 18. Bg5 {[%clk 0:01:48.3]} 18...
f6 {[%clk 0:01:40.3]} 19. Be3 {[%clk 0:01:48.2]} 19... Bb4 {[%clk 0:01:35.5]}
20. Nh4 {[%clk 0:01:47.7]} 20... g6 {[%clk 0:01:30.5]} 21. Qg4 {[%clk
0:01:45.8]} 21... Nc5 {[%clk 0:01:24.2]} 22. Bc2 {[%clk 0:01:32.8]} 22... Rc7
{[%clk 0:01:19.1]} 23. f4 {[%clk 0:01:16.5]} 23... Ba6 {[%clk 0:01:01.9]} 24.
Nf5 {[%clk 0:00:53.9]} 24... Qd7 {[%clk 0:00:43.3]} 25. fxe5 {[%clk 0:00:44.9]}
25... fxe5 {[%clk 0:00:34.2]} 26. dxc6 {[%clk 0:00:18.1]} 26... Rxc6 {[%clk
0:00:29.3]} 27. Rd1 {[%clk 0:00:18.6]} 27... Qe8 {[%clk 0:00:19.8]} 28. Rd5
{[%clk 0:00:17.3]} 28... Bxc4 {[%clk 0:00:16.1]} 29. Rad1 {[%clk 0:00:13.5]}
29... Bxd5 {[%clk 0:00:14.3]} 30. exd5 {[%clk 0:00:14.3]} 30... Rf6 {[%clk
0:00:12.8]} 31. d6 {[%clk 0:00:12.8]} 31... Nd7 {[%clk 0:00:07.3]} 32. Ne7+
{[%clk 0:00:10.6]} 32... Kh8 {[%clk 0:00:07.7]} 33. Bg5 {[%clk 0:00:10.5]} 33...
Rxd6 {[%clk 0:00:05.1]} 34. Rxd6 {[%clk 0:00:09.8]} 34... Bxd6 {[%clk 0:00:06]}
35. Nxg6+ {[%clk 0:00:07.5]} 35... hxg6 {[%clk 0:00:04.8]} 36. Qh4+ {[%clk
0:00:06.8]} 36... Kg8 {[%clk 0:00:02.1]} 37. Bb3+ {[%clk 0:00:06.6]} 37... Kf8
{[%clk 0:00:01.3]} 38. Qh6# {[%clk 0:00:07]} 1-0